[Event "Ceske Budejovice Open-A 2019"]
[Site "Ceske Budejovice"]
[Date "2019.07.04"]
[Round "6.14"]
[White "Pavlicek, Petr"]
[Black "Nagy, Ladislav"]
[Result "0-1"]
[ECO "E04"]
[WhiteElo "1828"]
[BlackElo "2061"]
[Annotator "NA"]
[PlyCount "98"]
[EventDate "2019.07.02"]
[EventCountry "CZE"]
[SourceTitle "playchess.com"]
[Source "ChessBase"]
[SourceQuality "1"]
[TimeControl "5400+30"]

1. d4 Nf6 2. c4 e6 3. Nf3 d5 4. g3 dxc4 5. Bg2 Nc6 6. Nc3 Bb4 7. O-O O-O 8. Qa4 Nd5 9. Nxd5 exd5 10. Ne5 Nxe5 11. Qxb4 Ng6 12. Bd2 c6 13. Bc3 Qe7 14. Rfe1 Re8 15. Qa4 Qc7 16. Rac1 Be6 17. Qc2 Rad8 18. Qd2 f6 19. a4 Ne7 20. f3 f5 21. Bb4 Nc8 22. Rc3 a5 23. Ba3 b5 24. Bc5 b4 25. Re3 Nb6 26. Bxb6 Qxb6 27. Re5 Bd7 28. f4 Rxe5 29. fxe5 Rf8 30. Qe3 Be6 31. Rc1 Rc8 32. Qd2 c5 33. e3 cxd4 34. exd4 Qc6 35. Qd1 Qd7 36. Bf3 Qf7 37. Qd2 Qd7 38. Bd1 Rf8 39. Qf4 Qe8 40. Qf3 f4 41. g4 Qg6 42. Be2 h5 43. h3 hxg4 44. hxg4 Qe8 45. Ra1 Qc6 46. Kf2 Qb6 47. Rd1 Rf7 48. Kg2 Kf8 49. Qf2 f3+ 0-1

[Event "Ceske Budejovice Open-A 2019"]
[Site "Ceske Budejovice"]
[Date "2019.07.04"]
[Round "6.15"]
[White "Rolinkova, Lucie"]
[Black "Brom, Jiri"]
[Result "1/2-1/2"]
[ECO "A45"]
[WhiteElo "1703"]
[BlackElo "2018"]
[Annotator "NA"]
[PlyCount "45"]
[EventDate "2019.07.02"]
[EventCountry "CZE"]
[SourceTitle "playchess.com"]
[Source "ChessBase"]
[SourceQuality "1"]
[TimeControl "5400+30"]

1. d4 {[%emt 0:00:00]} Nf6 {[%emt 0:00:00]} 2. Bf4 {[%emt 0:00:00]} g6 {[%emt 0:00:31]} 3. e3 {[%emt 0:00:23]} Bg7 {[%emt 0:00:14]} 4. c3 {[%emt 0:01:36]} d6 {[%emt 0:00:44]} 5. Nd2 {[%emt 0:02:18]} Nbd7 {[%emt 0:00:51]} 6. Ngf3 {[%emt 0:01:02]} O-O {[%emt 0:01:35]} 7. e4 {[%emt 0:03:03]} Re8 {[%emt 0:04:56]} 8. Bg3 {[%emt 0:05:57]} e5 {[%emt 0:06:48]} 9. d5 {[%emt 0:16:17]} c6 {[%emt 0:15:05]} 10. c4 {[%emt 0:19:44]} cxd5 {[%emt 0:12:46]} 11. cxd5 {[%emt 0:00:36]} Nc5 {[%emt 0:00:23]} 12. Qc2 {[%emt 0:01:47]} Qa5 {[%emt 0:07:29]} 13. a3 {[%emt 0:10:46]} Ncxe4 {[%emt 0:01:21]} 14. b4 {[%emt 0:00:50]} Qxd5 {[%emt 0:00:12]} 15. Bc4 {[%emt 0:00:27]} Qc6 {[%emt 0:01:27]} 16. b5 {[%emt 0:00:34]} Qb6 {[%emt 0:06:25]} 17. Nxe4 {[%emt 0:01:10]} Nxe4 {[%emt 0:01:12]} 18. Qxe4 {[%emt 0:00:21]} Bf5 {[%emt 0:00:50]} 19. Qd5 {[%emt 0:01:32]} Be6 {[%emt 0:00:46]} 20. Qe4 {[%emt 0:04:53]} Bxc4 {[%emt 0:04:13]} 21. Qxc4 {[%emt 0:00:27]} Rac8 {[%emt 0:04:33]} 22. Qb3 {[%emt 0:03:46]} e4 23. Ng1 1/2-1/2

[Event "Ceske Budejovice Open-A 2019"]
[Site "Ceske Budejovice"]
[Date "2019.07.04"]
[Round "6.16"]
[White "Baloun, Tomas"]
[Black "Rolinek, Dominik"]
[Result "0-1"]
[ECO "B00"]
[WhiteElo "1887"]
[BlackElo "2004"]
[Annotator "NA"]
[PlyCount "72"]
[EventDate "2019.07.02"]
[EventCountry "CZE"]
[SourceTitle "playchess.com"]
[Source "ChessBase"]
[SourceQuality "1"]
[TimeControl "5400+30"]

1. e4 {[%emt 0:01:05]} d6 {[%emt 0:00:00]} 2. d4 {[%emt 0:00:26]} Nf6 {[%emt 0:00:00]} 3. f3 {[%emt 0:02:26]} e5 {[%emt 0:00:00]} 4. d5 {[%emt 0:04:22]} c6 {[%emt 0:00:56]} 5. c4 {[%emt 0:01:11]} Be7 {[%emt 0:00:36]} 6. Nc3 {[%emt 0:01:17]} O-O {[%emt 0:00:23]} 7. Be3 {[%emt 0:02:19]} Ne8 {[%emt 0:04:01]} 8. Bd3 {[%emt 0:03:48]} c5 {[%emt 0:01:00]} 9. Qc2 {[%emt 0:05:28]} Na6 {[%emt 0:00:39]} 10. a3 {[%emt 0:01:27]} g6 {[%emt 0:00:38]} 11. O-O-O {[%emt 0:10:52]} Bd7 {[%emt 0:03:01]} 12. g4 {[%emt 0:07:31]} Nac7 {[%emt 0:01:18]} 13. h4 {[%emt 0:07:35]} a6 {[%emt 0:00:07]} 14. a4 {[%emt 0:07:23]} Rb8 {[%emt 0:08:25]} 15. Nh3 {[%emt 0:11:53]} b5 {[%emt 0:00:51]} 16. axb5 {[%emt 0:02:52]} axb5 {[%emt 0:00:09]} 17. cxb5 {[%emt 0:03:58]} Nxb5 {[%emt 0:01:51]} 18. Nxb5 {[%emt 0:01:49]} Bxb5 {[%emt 0:00:54]} 19. f4 {[%emt 0:02:47]} exf4 {[%emt 0:00:51]} 20. Nxf4 {[%emt 0:01:26]} Bf6 {[%emt 0:00:17]} 21. Kd2 {[%emt 0:08:58]} Qa5+ {[%emt 0:00:51]} 22. Ke2 {[%emt 0:00:20]} Nc7 {[%emt 0:07:16]} 23. g5 {[%emt 0:01:13]} Bxb2 {[%emt 0:00:23]} 24. h5 {[%emt 0:01:28]} Ba4 {[%emt 0:01:18]} 25. Qd2 {[%emt 0:03:09]} Bc3 {[%emt 0:00:09]} 26. Qc1 {[%emt 0:01:04]} Bxd1+ {[%emt 0:00:23]} 27. Qxd1 {[%emt 0:00:38]} Qa2+ {[%emt 0:02:22]} 28. Kf3 {[%emt 0:00:23]} Nb5 {[%emt 0:00:59]} 29. Kg3 {[%emt 0:02:03]} Be5 {[%emt 0:01:17]} 30. Rh2 {[%emt 0:00:58]} Nc3 {[%emt 0:01:04]} 31. Qg4 {[%emt 0:01:07]} Qa1 {[%emt 0:01:59]} 32. hxg6 {[%emt 0:01:16]} Qe1+ {[%emt 0:04:08]} 33. Bf2 {[%emt 0:00:50]} Nxe4+ {[%emt 0:00:18]} 34. Bxe4 {[%emt 0:00:42]} Qxe4 {[%emt 0:00:43]} 35. gxh7+ {[%emt 0:00:45]} Kh8 {[%emt 0:00:13]} 36. Rh6 {[%emt 0:00:37]} Rb3+ {[%emt 0:00:10]} 0-1

[Event "Ceske Budejovice Open-A 2019"]
[Site "Ceske Budejovice"]
[Date "2019.07.04"]
[Round "6.17"]
[White "Nezval, Filip"]
[Black "Stehlik, Jiri"]
[Result "1-0"]
[ECO "A39"]
[WhiteElo "1860"]
[BlackElo "1930"]
[Annotator "NA"]
[PlyCount "93"]
[EventDate "2019.07.02"]
[EventCountry "CZE"]
[SourceTitle "playchess.com"]
[Source "ChessBase"]
[SourceQuality "1"]
[TimeControl "5400+30"]

1. c4 {[%emt 0:00:00]} c5 {[%emt 0:22:17]} 2. Nf3 {[%emt 0:00:00]} Nf6 {[%emt 0:00:11]} 3. g3 {[%emt 0:00:00]} g6 {[%emt 0:00:22]} 4. Bg2 {[%emt 0:00:14]} Bg7 {[%emt 0:00:10]} 5. O-O {[%emt 0:00:33]} O-O {[%emt 0:00:04]} 6. Nc3 {[%emt 0:00:28]} Nc6 {[%emt 0:00:20]} 7. d4 {[%emt 0:05:38]} cxd4 {[%emt 0:00:45]} 8. Nxd4 {[%emt 0:00:13]} Nxd4 {[%emt 0:00:07]} 9. Qxd4 {[%emt 0:00:10]} d6 {[%emt 0:00:05]} 10. Qh4 {[%emt 0:08:23]} Rb8 {[%emt 0:04:21]} 11. Bh6 {[%emt 0:08:21]} Be6 {[%emt 0:01:39]} 12. Bxg7 {[%emt 0:01:34]} Kxg7 {[%emt 0:00:04]} 13. Qd4 {[%emt 0:00:22]} Kg8 {[%emt 0:01:10]} 14. b3 {[%emt 0:08:26]} Qa5 {[%emt 0:02:29]} 15. Rfd1 {[%emt 0:14:23]} Rfc8 {[%emt 0:02:32]} 16. Nb5 {[%emt 0:17:17]} a6 {[%emt 0:04:50]} 17. Nxd6 {[%emt 0:05:56]} Rd8 {[%emt 0:08:43]} 18. Nxb7 {[%emt 0:00:29]} Rxd4 {[%emt 0:01:02]} 19. Nxa5 {[%emt 0:00:10]} Rbd8 {[%emt 0:00:53]} 20. Rxd4 {[%emt 0:00:58]} Rxd4 {[%emt 0:00:02]} 21. Nc6 {[%emt 0:01:26]} Rd7 {[%emt 0:01:03]} 22. e4 {[%emt 0:03:47]} Ne8 {[%emt 0:00:34]} 23. Nb4 {[%emt 0:02:58]} Nc7 {[%emt 0:00:28]} 24. Nd5 {[%emt 0:00:11]} a5 {[%emt 0:03:40]} 25. Nxc7 {[%emt 0:00:48]} Rxc7 {[%emt 0:00:03]} 26. Rd1 {[%emt 0:00:07]} a4 {[%emt 0:00:38]} 27. e5 {[%emt 0:01:54]} Bf5 {[%emt 0:02:19]} 28. Rd2 {[%emt 0:01:58]} Kg7 {[%emt 0:01:01]} 29. f4 {[%emt 0:00:50]} h6 {[%emt 0:02:45]} 30. Kf2 {[%emt 0:00:50]} g5 {[%emt 0:01:42]} 31. Ke3 {[%emt 0:00:45]} f6 {[%emt 0:01:17]} 32. Be4 {[%emt 0:01:27]} Bc8 {[%emt 0:03:57]} 33. Rc2 {[%emt 0:01:35]} axb3 {[%emt 0:04:16]} 34. axb3 {[%emt 0:00:04]} Ra7 {[%emt 0:02:33]} 35. c5 {[%emt 0:00:51]} fxe5 {[%emt 0:01:44]} 36. fxe5 {[%emt 0:00:36]} Be6 {[%emt 0:01:27]} 37. Rc3 {[%emt 0:01:26]} Ra1 {[%emt 0:00:21]} 38. c6 {[%emt 0:06:23]} Ra2 {[%emt 0:00:57]} 39. c7 {[%emt 0:01:38]} Bc8 {[%emt 0:00:26]} 40. Rc2 {[%emt 0:00:45]} Ra3 {[%emt 0:01:13]} 41. Rc3 {[%emt 0:01:04]} Kf7 {[%emt 0:01:21]} 42. Kd4 {[%emt 0:01:48]} e6 {[%emt 0:02:51]} 43. b4 {[%emt 0:02:04]} Ra2 {[%emt 0:00:26]} 44. Rc2 {[%emt 0:00:00]} Ra4 {[%emt 0:00:00]} 45. Kc5 {[%emt 0:00:00]} Ke7 {[%emt 0:00:00]} 46. Bc6 {[%emt 0:00:00]} Ra7 {[%emt 0:00:00]} 47. b5 {[%emt 0:00:00]} 1-0

[Event "Ceske Budejovice Open-A 2019"]
[Site "Ceske Budejovice"]
[Date "2019.07.04"]
[Round "6.18"]
[White "Steiner, Juraj"]
[Black "Zacek, Petr"]
[Result "1/2-1/2"]
[ECO "D35"]
[WhiteElo "1896"]
[BlackElo "1883"]
[Annotator "NA"]
[PlyCount "43"]
[EventDate "2019.07.02"]
[EventCountry "CZE"]
[SourceTitle "playchess.com"]
[Source "ChessBase"]
[SourceQuality "1"]
[TimeControl "5400+30"]

1. d4 {[%emt 0:00:00]} d5 {[%emt 0:00:00]} 2. c4 {[%emt 0:01:23]} e6 {[%emt 0:00:00]} 3. Nc3 {[%emt 0:00:50]} Nf6 {[%emt 0:00:00]} 4. cxd5 {[%emt 0:00:40]} exd5 {[%emt 0:00:11]} 5. Bg5 {[%emt 0:00:22]} Be7 {[%emt 0:00:11]} 6. e3 {[%emt 0:00:44]} c6 {[%emt 0:00:08]} 7. Qc2 {[%emt 0:00:23]} O-O {[%emt 0:00:16]} 8. Bd3 {[%emt 0:00:17]} h6 {[%emt 0:00:38]} 9. Bh4 {[%emt 0:00:39]} Nbd7 {[%emt 0:00:12]} 10. Nge2 {[%emt 0:00:40]} Re8 {[%emt 0:00:16]} 11. f3 {[%emt 0:01:08]} c5 {[%emt 0:01:35]} 12. O-O {[%emt 0:00:48]} b6 {[%emt 0:00:34]} 13. Bf2 {[%emt 0:12:54]} Bb7 {[%emt 0:00:12]} 14. Rad1 {[%emt 0:06:27]} g6 {[%emt 0:03:40]} 15. Nf4 {[%emt 0:08:45]} Bf8 {[%emt 0:11:52]} 16. dxc5 {[%emt 0:07:36]} bxc5 {[%emt 0:03:12]} 17. Bb5 {[%emt 0:01:48]} Re5 {[%emt 0:08:01]} 18. Bxd7 {[%emt 0:14:56]} Qxd7 {[%emt 0:00:35]} 19. Ne4 {[%emt 0:09:22]} Nxe4 {[%emt 0:03:40]} 20. fxe4 {[%emt 0:01:47]} d4 {[%emt 0:14:22]} 21. exd4 {[%emt 0:01:21]} Rxe4 {[%emt 0:02:24]} 22. dxc5 {[%emt 0:05:42]} 1/2-1/2

[Event "Ceske Budejovice Open-A 2019"]
[Site "Ceske Budejovice"]
[Date "2019.07.04"]
[Round "6.19"]
[White "Puncochar, Jiri"]
[Black "Kanka, Matej"]
[Result "1/2-1/2"]
[ECO "B33"]
[WhiteElo "2014"]
[BlackElo "1858"]
[Annotator "NA"]
[PlyCount "139"]
[EventDate "2019.07.02"]
[EventCountry "CZE"]
[SourceTitle "playchess.com"]
[Source "ChessBase"]
[SourceQuality "1"]
[TimeControl "5400+30"]

1. e4 c5 2. Nf3 Nc6 3. d4 cxd4 4. Nxd4 Nf6 5. Nc3 g6 6. Nxc6 dxc6 7. Qxd8+ Kxd8 8. Bc4 Bg7 9. f3 e6 10. a4 a5 11. Be3 Nd7 12. O-O-O Kc7 13. Bf4+ e5 14. Be3 f5 15. h4 b6 16. h5 f4 17. Bf2 g5 18. h6 Bf6 19. Rd2 Rd8 20. Rhd1 Rb8 21. Rd6 Be7 22. Re6 Re8 23. g3 Nf8 24. Rxc6+ Kxc6 25. Bb5+ Kb7 26. Bxe8 g4 27. Bh5 Bg5 28. Kb1 gxf3 29. gxf4 exf4 30. Bxf3 Bd7 31. Rd5 Bxh6 32. Rd6 Bg7 33. Rxb6+ Kc8 34. Rxb8+ Kxb8 35. Nd5 Be5 36. Bb6 Ng6 37. Bxa5 Nh4 38. Be2 f3 39. Bf1 Bxa4 40. Be1 Ng2 41. Bf2 Bc6 42. Kc1 h5 43. Kd2 h4 44. Bxg2 fxg2 45. Ke2 h3 46. Kf3 Bb5 47. Bg1 Be2+ 48. Kf2 Bd4+ 49. Ne3 Bg4 50. c3 Bb6 51. Bh2+ Kc8 52. b4 Be6 53. Bf4 Bc4 54. Kg1 Bd3 55. e5 Kd7 56. Kh2 Be4 57. Bg5 Ke6 58. Bf4 Bd8 59. Nd1 Bh4 60. Kg1 Kf5 61. Bh2 Bd8 62. c4 Bd3 63. c5 Bg5 64. Kf2 Bh4+ 65. Kg1 Ke6 66. Ne3 Be4 67. Bf4 Bc6 68. b5 Bxb5 69. Nxg2 hxg2 70. Kxg2 {Kxe5} 1/2-1/2

[Event "Ceske Budejovice Open-A 2019"]
[Site "Ceske Budejovice"]
[Date "2019.07.04"]
[Round "6.20"]
[White "Szotkowski, David"]
[Black "Chval, Zdenek"]
[Result "1/2-1/2"]
[ECO "E66"]
[WhiteElo "1869"]
[BlackElo "2145"]
[Annotator "NA"]
[PlyCount "59"]
[EventDate "2019.07.02"]
[EventCountry "CZE"]
[SourceTitle "playchess.com"]
[Source "ChessBase"]
[SourceQuality "1"]
[TimeControl "5400+30"]

1. d4 {[%emt 0:00:00]} Nf6 {[%emt 0:00:00]} 2. c4 {[%emt 0:00:00]} g6 {[%emt 0:00:00]} 3. g3 {[%emt 0:00:19]} Bg7 {[%emt 0:00:00]} 4. Bg2 {[%emt 0:00:08]} d6 {[%emt 0:00:00]} 5. Nf3 {[%emt 0:00:28]} O-O {[%emt 0:00:00]} 6. O-O {[%emt 0:00:12]} c5 {[%emt 0:00:00]} 7. Nc3 {[%emt 0:03:05]} Nc6 {[%emt 0:00:31]} 8. d5 {[%emt 0:08:44]} Na5 {[%emt 0:00:06]} 9. Qd3 {[%emt 0:00:39]} a6 {[%emt 0:12:47]} 10. e4 {[%emt 0:04:11]} e6 {[%emt 0:09:05]} 11. Bd2 {[%emt 0:06:03]} exd5 {[%emt 0:11:19]} 12. cxd5 {[%emt 0:05:02]} b5 {[%emt 0:06:53]} 13. Rad1 {[%emt 0:06:41]} Re8 {[%emt 0:11:11]} 14. Nh4 {[%emt 0:07:11]} b4 {[%emt 0:09:45]} 15. Ne2 {[%emt 0:02:06]} Bd7 {[%emt 0:13:37]} 16. Rfe1 {[%emt 0:05:56]} Bb5 {[%emt 0:00:46]} 17. Qb1 {[%emt 0:00:31]} Nxd5 {[%emt 0:02:36]} 18. Nc1 {[%emt 0:09:36]} Nb6 {[%emt 0:05:59]} 19. b3 {[%emt 0:15:49]} Nc6 {[%emt 0:04:55]} 20. Nd3 {[%emt 0:04:57]} a5 {[%emt 0:07:10]} 21. Be3 {[%emt 0:01:09]} Qc7 {[%emt 0:02:04]} 22. Bf4 {[%emt 0:02:00]} Ne5 {[%emt 0:01:18]} 23. Nxe5 {[%emt 0:02:46]} Bxe5 {[%emt 0:00:21]} 24. Be3 {[%emt 0:00:22]} Bc3 {[%emt 0:00:24]} 25. Bd2 {[%emt 0:00:28]} Bd4 {[%emt 0:00:57]} 26. Nf3 {[%emt 0:01:35]} Bg7 {[%emt 0:00:23]} 27. Ng5 {[%emt 0:01:49]} Rad8 {[%emt 0:00:49]} 28. f4 {[%emt 0:00:39]} c4 {[%emt 0:00:27]} 29. Bf1 {[%emt 0:02:24]} c3 {[%emt 0:00:30]} 30. Qc2 {[%emt 0:02:00]} 1/2-1/2

[Event "Ceske Budejovice Open-A 2019"]
[Site "Ceske Budejovice"]
[Date "2019.07.04"]
[Round "6.21"]
[White "Pavlicek, Adam"]
[Black "Asatryan, Manvel"]
[Result "1/2-1/2"]
[ECO "A80"]
[WhiteElo "1651"]
[BlackElo "1799"]
[Annotator "NA"]
[PlyCount "80"]
[EventDate "2019.07.02"]
[EventCountry "CZE"]
[SourceTitle "playchess.com"]
[Source "ChessBase"]
[SourceQuality "1"]
[TimeControl "5400+30"]

1. d4 {[%emt 0:00:00]} f5 {[%emt 0:00:00]} 2. Bf4 {[%emt 0:01:43]} Nf6 {[%emt 0:00:00]} 3. Nc3 {[%emt 0:02:28]} g6 {[%emt 0:00:24]} 4. e3 {[%emt 0:01:48]} Bg7 {[%emt 0:03:42]} 5. Be2 {[%emt 0:01:31]} O-O {[%emt 0:00:28]} 6. h4 {[%emt 0:00:53]} h6 {[%emt 0:04:22]} 7. Qd3 {[%emt 0:09:51]} c6 {[%emt 0:03:33]} 8. g4 {[%emt 0:03:54]} fxg4 {[%emt 0:10:14]} 9. Qxg6 {[%emt 0:02:01]} Qe8 {[%emt 0:00:17]} 10. Bd3 {[%emt 0:13:55]} Qxg6 {[%emt 0:01:56]} 11. Bxg6 {[%emt 0:00:03]} d6 {[%emt 0:01:55]} 12. Nge2 {[%emt 0:00:52]} Be6 {[%emt 0:03:29]} 13. O-O-O {[%emt 0:02:47]} Bf7 {[%emt 0:15:29]} 14. h5 {[%emt 0:01:51]} Nbd7 {[%emt 0:05:16]} 15. e4 {[%emt 0:22:56]} e5 {[%emt 0:05:44]} 16. Be3 {[%emt 0:01:29]} Rad8 {[%emt 0:24:23]} 17. Ng3 {[%emt 0:03:37]} exd4 {[%emt 0:05:45]} 18. Bxd4 {[%emt 0:07:40]} Bxg6 {[%emt 0:08:32]} 19. hxg6 {[%emt 0:00:28]} Ne5 {[%emt 0:00:16]} 20. Nf5 {[%emt 0:02:32]} Nxg6 {[%emt 0:01:35]} 21. Nxh6+ {[%emt 0:00:53]} Bxh6+ {[%emt 0:00:04]} 22. Rxh6 {[%emt 0:00:19]} Kg7 {[%emt 0:00:09]} 23. Rdh1 {[%emt 0:02:44]} Ne5 {[%emt 0:02:18]} 24. b3 {[%emt 0:07:11]} b6 {[%emt 0:00:31]} 25. Be3 {[%emt 0:01:04]} Rh8 {[%emt 0:00:28]} 26. Bg5 {[%emt 0:02:42]} Rxh6 {[%emt 0:00:04]} 27. Rxh6 {[%emt 0:00:16]} Ned7 {[%emt 0:00:13]} 28. Kd2 {[%emt 0:02:25]} Rh8 {[%emt 0:00:26]} 29. Rxh8 {[%emt 0:01:05]} Kxh8 {[%emt 0:00:02]} 30. Ke3 {[%emt 0:00:21]} Kg7 {[%emt 0:00:40]} 31. Kf4 {[%emt 0:00:17]} Kg6 {[%emt 0:00:21]} 32. Bxf6 {[%emt 0:01:51]} Nxf6 33. Nd1 {[%emt 0:00:31]} b5 {[%emt 0:02:07]} 34. Ne3 {[%emt 0:00:34]} a6 {[%emt 0:00:10]} 35. Nxg4 {[%emt 0:00:27]} Nh5+ {[%emt 0:00:07]} 36. Kf3 {[%emt 0:00:23]} Kg5 {[%emt 0:00:50]} 37. e5 {[%emt 0:01:13]} d5 {[%emt 0:00:32]} 38. b4 {[%emt 0:00:29]} Kf5 {[%emt 0:00:21]} 39. c3 {[%emt 0:01:34]} Nf4 40. Ne3+ Kxe5 {Ke4+} 1/2-1/2

[Event "Ceske Budejovice Open-A 2019"]
[Site "Ceske Budejovice"]
[Date "2019.07.04"]
[Round "6.22"]
[White "Brhlik, Antonin"]
[Black "Stodola, Zdenek"]
[Result "1-0"]
[ECO "B05"]
[WhiteElo "1639"]
[BlackElo "1551"]
[Annotator "NA"]
[PlyCount "67"]
[EventDate "2019.07.02"]
[EventCountry "CZE"]
[SourceTitle "playchess.com"]
[Source "ChessBase"]
[SourceQuality "1"]
[TimeControl "5400+30"]

1. e4 {[%emt 0:00:00]} Nf6 {[%emt 0:00:00]} 2. e5 {[%emt 0:00:00]} Nd5 {[%emt 0:00:00]} 3. d4 {[%emt 0:00:05]} d6 {[%emt 0:00:00]} 4. Nf3 {[%emt 0:00:12]} Bg4 {[%emt 0:00:22]} 5. Be2 {[%emt 0:00:05]} e6 {[%emt 0:00:19]} 6. c4 {[%emt 0:00:41]} Nb6 {[%emt 0:00:03]} 7. Nc3 {[%emt 0:00:45]} Nc6 {[%emt 0:00:37]} 8. Be3 {[%emt 0:02:37]} Be7 {[%emt 0:00:47]} 9. O-O {[%emt 0:01:41]} O-O {[%emt 0:00:23]} 10. exd6 {[%emt 0:09:38]} cxd6 {[%emt 0:00:11]} 11. b3 {[%emt 0:04:24]} Qd7 {[%emt 0:02:18]} 12. Qd2 {[%emt 0:07:24]} Bf6 {[%emt 0:02:05]} 13. Rfd1 {[%emt 0:01:19]} Rad8 {[%emt 0:01:32]} 14. Rac1 {[%emt 0:07:32]} Rfe8 {[%emt 0:02:07]} 15. Ne4 {[%emt 0:13:39]} Be7 {[%emt 0:05:59]} 16. d5 {[%emt 0:02:52]} exd5 {[%emt 0:00:55]} 17. cxd5 {[%emt 0:01:24]} Nb8 {[%emt 0:01:40]} 18. Qa5 {[%emt 0:12:49]} Bxf3 {[%emt 0:07:57]} 19. Bxf3 {[%emt 0:00:36]} f5 {[%emt 0:02:59]} 20. Nc3 {[%emt 0:07:55]} Na6 {[%emt 0:02:40]} 21. Nb5 {[%emt 0:02:42]} Nc8 {[%emt 0:14:16]} 22. Nc7 {[%emt 0:02:06]} Nxc7 {[%emt 0:09:02]} 23. Rxc7 {[%emt 0:00:32]} b6 {[%emt 0:00:03]} 24. Qc3 {[%emt 0:01:29]} Bf6 {[%emt 0:01:46]} 25. Qc2 {[%emt 0:01:48]} Qb5 {[%emt 0:01:39]} 26. a3 {[%emt 0:02:32]} Rf8 {[%emt 0:03:54]} 27. Bd4 {[%emt 0:06:32]} Qe8 {[%emt 0:02:13]} 28. Bxf6 {[%emt 0:02:36]} Rxf6 {[%emt 0:00:05]} 29. Qc1 {[%emt 0:00:52]} Rf8 {[%emt 0:04:46]} 30. Re1 {[%emt 0:00:57]} Qb5 {[%emt 0:03:54]} 31. Qc3 {[%emt 0:00:56]} Rd7 {[%emt 0:13:55]} 32. Rxc8 {[%emt 0:00:24]} Rdf7 {[%emt 0:01:53]} 33. Rxf8+ {[%emt 0:00:37]} Kxf8 {[%emt 0:00:29]} 34. Qc8+ {[%emt 0:00:34]} 1-0

[Event "Ceske Budejovice Open-A 2019"]
[Site "Ceske Budejovice"]
[Date "2019.07.04"]
[Round "6.23"]
[White "Solovyova, Anastasia"]
[Black "Chval, Petr"]
[Result "1-0"]
[ECO "E73"]
[WhiteElo "1835"]
[BlackElo "1885"]
[Annotator "NA"]
[PlyCount "55"]
[EventDate "2019.07.02"]
[EventCountry "CZE"]
[SourceTitle "playchess.com"]
[Source "ChessBase"]
[SourceQuality "1"]
[TimeControl "5400+30"]

1. d4 Nf6 {[%emt 0:00:06]} 2. c4 {[%emt 0:00:00]} g6 3. Nc3 {[%emt 0:00:00]} Bg7 {[%emt 0:00:23]} 4. e4 {[%emt 0:00:10]} d6 {[%emt 0:00:05]} 5. Be2 {[%emt 0:00:28]} O-O {[%emt 0:00:12]} 6. Bg5 c6 {[%emt 0:06:22]} 7. Qd2 {[%emt 0:09:54]} e5 {[%emt 0:12:37]} 8. d5 {[%emt 0:31:19]} c5 {[%emt 0:15:03]} 9. f3 {[%emt 0:06:29]} Qb6 {[%emt 0:04:17]} 10. g4 h6 11. Bh4 {[%emt 0:12:37]} Nh7 {[%emt 0:03:16]} 12. Bd3 a5 13. Nb5 {[%emt 0:08:24]} Bd7 {[%emt 0:07:37]} 14. a4 {[%emt 0:00:32]} Bxb5 {[%emt 0:00:47]} 15. axb5 {[%emt 0:00:06]} Qc7 {[%emt 0:00:39]} 16. Ne2 {[%emt 0:04:24]} Nd7 {[%emt 0:01:51]} 17. Bf2 Ng5 {[%emt 0:02:45]} 18. Ng1 {[%emt 0:03:00]} f5 {[%emt 0:00:19]} 19. gxf5 {[%emt 0:03:07]} gxf5 {[%emt 0:03:36]} 20. h4 {[%emt 0:01:09]} Nf7 {[%emt 0:01:06]} 21. exf5 {[%emt 0:01:36]} h5 {[%emt 0:12:40]} 22. Nh3 {[%emt 0:02:45]} Qd8 {[%emt 0:05:16]} 23. Ng5 Qf6 24. Ne6 {[%emt 0:03:16]} Bh6 {[%emt 0:00:56]} 25. Be3 {[%emt 0:02:05]} Rfc8 {[%emt 0:10:25]} 26. Bg5 Bxg5 {[%emt 0:05:52]} 27. hxg5 {[%emt 0:00:51]} Qh8 {[%emt 0:00:05]} 28. g6 {[%emt 0:01:01]} 1-0